bitfinex-derivatives/quotes_BTCF0:USTF0_20240829
["timestamp","ask_amount","ask_price","bid_price","bid_amount"]
[1724920975453,0.017,59544.0,59543.0,0.640251]
[1724920978158,0.09461321,59544.0,59543.0,0.640251]
[1724920979156,0.09461321,59544.0,59543.0,1.001051]
[1724920979759,0.017,59544.0,59543.0,1.001051]
[1724920979959,0.09461321,59544.0,59543.0,1.001051]
[1724920981153,0.017,59544.0,59543.0,1.001051]
[1724920982858,0.017,59544.0,59543.0,1.085002]
[1724920983262,0.015,59544.0,59543.0,1.085002]
[1724920986666,0.002,59544.0,59543.0,1.086002]
[1724920987366,0.002,59544.0,59543.0,1.085002]
[1724920987561,0.02981126,59549.0,59548.0,0.083944]
[1724920987755,0.02981126,59549.0,59548.0,0.564744]
[1724920988769,0.03081126,59549.0,59548.0,0.565744]
[1724920989161,0.03081126,59549.0,59548.0,0.204944]
[1724920989468,0.03081126,59549.0,59548.0,0.565744]
[1724920989967,0.11475426,59549.0,59548.0,0.565744]
[1724920990771,0.03981126,59549.0,59548.0,0.566744]
[1724920991362,0.01025187,59549.0,59548.0,0.566744]
[1724920993975,0.01025187,59549.0,59548.0,0.565744]
[1724920993976,0.00925187,59549.0,59548.0,0.565744]
[1724920994463,0.00625187,59549.0,59548.0,0.565744]
[1724920994659,0.00925187,59549.0,59548.0,0.566744]
[1724920995072,0.00925187,59549.0,59548.0,0.565744]
[1724920995368,0.00925187,59549.0,59548.0,0.566744]
[1724920995866,0.01225187,59549.0,59548.0,0.566744]
[1724920996776,0.00325187,59549.0,59548.0,0.565744]
[1724920996968,0.01025187,59549.0,59548.0,0.565744]
[1724920997169,0.01325187,59549.0,59548.0,0.566744]
[1724920999178,0.01325187,59549.0,59548.0,0.565744]
[1724920999370,0.01225187,59549.0,59548.0,0.566744]
[1724921000266,0.00925187,59549.0,59548.0,0.565744]
[1724921000471,0.01225187,59549.0,59548.0,0.566744]
[1724921000674,0.01225187,59549.0,59548.0,0.446744]
[1724921000972,0.09319487,59549.0,59548.0,0.446744]
[1724921001177,0.17380808,59549.0,59548.0,0.446744]
[1724921005081,0.17380808,59549.0,59548.0,0.085944]
[1724921005278,0.17380808,59549.0,59548.0,0.446744]
[1724921007779,0.08986508,59549.0,59548.0,0.446744]
[1724921008284,0.01225187,59549.0,59548.0,0.446744]
[1724921013181,0.09619487,59549.0,59548.0,0.446744]
[1724921015494,0.09619487,59549.0,59548.0,0.085944]
[1724921015685,0.09619487,59549.0,59548.0,0.446744]
[1724921016986,0.21619487,59549.0,59548.0,0.3628]
[1724921017186,0.71999487,59549.0,59548.0,0.002]
[1724921018191,0.80393787,59549.0,59548.0,0.002]
[1724921018396,0.083954,59541.0,59540.0,0.3608]
[1724921018600,0.203954,59541.0,59540.0,0.3608]
[1724921018991,0.083954,59541.0,59540.0,0.3608]
[1724921020503,0.083954,59541.0,59540.0,0.3618]
[1724921021295,0.084954,59541.0,59540.0,0.3618]
[1724921022206,0.084954,59541.0,59540.0,0.001]
[1724921022807,0.11567949,59541.0,59540.0,0.001]
[1724921023607,0.03172549,59541.0,59540.0,0.001]
[1724921024902,0.03172549,59541.0,59540.0,0.084956]
[1724921025413,0.03172549,59541.0,59540.0,0.445756]
[1724921034317,0.01260431,59550.0,59540.0,0.3618]
[1724921034504,0.08395,59545.0,59541.0,0.083953]
[1724921034700,0.08395,59545.0,59544.0,0.12]
[1724921035215,0.083945,59548.0,59544.0,0.20395]
[1724921036213,0.014,59545.0,59544.0,0.20495]
[1724921037118,0.014,59545.0,59544.0,0.20595]
[1724921037712,0.018,59545.0,59544.0,0.20595]
[1724921038613,0.004,59545.0,59544.0,0.20595]
[1724921039217,0.002,59545.0,59544.0,0.20595]
[1724921039417,0.083937,59553.0,59550.0,0.08394]
[1724921039618,0.11409691,59553.0,59552.0,0.12]
[1724921040513,0.03015991,59553.0,59552.0,0.12]
[1724921040715,0.083933,59556.0,59553.0,0.083937]
[1724921040919,0.083933,59556.0,59555.0,0.4808]
[1724921041218,0.09232168,59556.0,59555.0,0.4808]
[1724921042311,0.10632168,59556.0,59555.0,0.4818]
[1724921042716,0.10632168,59556.0,59555.0,0.3618]
[1724921042916,0.22632168,59556.0,59555.0,0.001]
[1724921044013,0.22632168,59556.0,59555.0,0.002]
[1724921046027,0.22632168,59556.0,59555.0,0.001]
[1724921046219,0.10832168,59556.0,59555.0,0.002]
[1724921046528,0.22832168,59556.0,59555.0,0.002]
[1724921049730,0.14438868,59556.0,59555.0,0.085935]
[1724921052524,0.02438868,59556.0,59555.0,0.205935]
[1724921052719,0.14438868,59556.0,59555.0,0.002]
[1724921053930,1.49357952,59556.0,59555.0,0.002]
[1724921054133,1.49357952,59556.0,59542.0,0.6895]
[1724921054134,1.69284168,59556.0,59542.0,0.6895]
[1724921054426,0.12,59544.0,59542.0,0.6895]
[1724921054631,0.07760484,59543.0,59542.0,0.6895]
[1724921055031,0.07760484,59543.0,59542.0,0.773453]
[1724921055535,0.07760484,59543.0,59542.0,0.893453]
[1724921056126,0.07860484,59543.0,59542.0,0.893453]
[1724921056324,0.11132339,59543.0,59542.0,0.893453]
[1724921056734,0.11232339,59543.0,59542.0,0.893453]
[1724921057841,0.08260484,59543.0,59542.0,0.893453]
[1724921058230,0.08360484,59543.0,59542.0,0.893453]
[1724921059133,0.08360484,59543.0,59542.0,0.564753]
[1724921060925,0.006,59543.0,59542.0,0.564753]
[1724921062938,0.006,59543.0,59542.0,0.925553]
[1724921067034,0.0021,59543.0,59542.0,0.925553]
[1724921068935,0.07970484,59543.0,59542.0,0.925553]
[1724921074450,0.07970484,59543.0,59542.0,0.564753]
[1724921074950,0.07970484,59543.0,59542.0,0.203953]
[1724921075149,0.07970484,59543.0,59542.0,0.564753]
[1724921076048,0.0021,59543.0,59542.0,0.564753]
[1724921076848,0.0021,59543.0,59542.0,0.203953]
[1724921077055,0.0021,59543.0,59542.0,0.564753]
[1724921080951,0.0021,59543.0,59542.0,0.203953]
[1724921081153,0.0021,59543.0,59542.0,0.564753]
[1724921084757,0.0021,59543.0,59535.0,0.0039]
[1724921084758,0.50594,59543.0,59535.0,0.0039]
[1724921084957,0.203957,59539.0,59538.0,0.08420987]
[1724921085256,0.0021,59543.0,59538.0,0.48105187]
[1724921085451,0.0021,59543.0,59542.0,0.083953]
[1724921086270,0.08395,59544.0,59542.0,0.083953]
[1724921086463,0.08395,59544.0,59543.0,0.3608]
[1724921087665,0.08495,59544.0,59543.0,0.3608]
[1724921088757,0.08995,59544.0,59543.0,0.3608]
[1724921092669,0.08995,59544.0,59542.0,0.083953]
[1724921092871,0.08995,59544.0,59543.0,0.3608]
[1724921094268,0.08895,59544.0,59543.0,0.3608]
[1724921094469,0.08995,59544.0,59543.0,0.3608]
[1724921094670,0.08895,59544.0,59543.0,0.3608]
[1724921094869,0.08895,59544.0,59543.0,0.444751]
[1724921095171,0.005,59544.0,59543.0,0.444751]
[1724921096268,0.006,59544.0,59543.0,0.444751]
[1724921102577,0.20995,59544.0,59543.0,0.3608]
[1724921102769,0.083957,59539.0,59538.0,0.00025187]
[1724921103980,0.005,59544.0,59540.0,0.083954]
[1724921104179,0.005,59544.0,59542.0,0.12]
[1724921104366,0.12,59544.0,59540.0,0.203954]
[1724921105281,0.122,59544.0,59540.0,0.203954]
[1724921105581,0.205951,59544.0,59540.0,0.203954]
[1724921107580,0.083952,59543.0,59540.0,0.203954]
[1724921107978,0.12,59541.0,59538.0,0.00025187]
[1724921108484,0.203954,59541.0,59539.0,0.12]
[1724921110090,0.28155884,59541.0,59539.0,0.12]
[1724921110286,0.203954,59541.0,59539.0,0.121]
[1724921110492,0.28155884,59541.0,59539.0,0.121]
[1724921110688,0.07760484,59540.0,59539.0,0.121]
[1724921110889,0.07760484,59540.0,59539.0,0.4818]
[1724921111091,0.203954,59541.0,59539.0,0.4818]
[1724921111290,0.203954,59541.0,59539.0,0.3618]
[1724921111590,0.204954,59541.0,59539.0,0.3618]
[1724921112389,0.07760484,59540.0,59539.0,0.3618]
[1724921112585,0.12,59540.0,59539.0,0.3618]
[1724921114592,0.001,59540.0,59539.0,0.3618]
[1724921116199,0.03133605,59540.0,59539.0,0.445757]
[1724921119892,0.03133605,59540.0,59539.0,0.084957]
[1724921120089,0.03133605,59540.0,59539.0,0.445757]
[1724921121510,0.10893997,59540.0,59539.0,0.445757]
[1724921121802,0.03133605,59540.0,59539.0,0.445757]
[1724921124899,0.10893997,59540.0,59539.0,0.445757]
[1724921129212,0.03133605,59540.0,59539.0,0.445757]
[1724921132306,0.001,59540.0,59539.0,1.045757]
[1724921132504,0.001,59540.0,59539.0,1.633594]
[1724921134921,0.001,59540.0,59539.0,1.66380904]
[1724921136920,0.001,59540.0,59539.0,1.78380904]
[1724921139125,0.001,59540.0,59539.0,1.86776604]
[1724921140522,0.001,59540.0,59539.0,2.22856604]
[1724921143228,0.0039,59549.0,59548.0,0.167888]
[1724921143425,0.09622168,59556.0,59555.0,0.083935]
[1724921143723,0.00838868,59556.0,59555.0,0.083935]
[1724921143925,0.09653366,59558.0,59557.0,0.083932]
[1724921144125,0.20385321,59558.0,59557.0,0.083932]
[1724921144511,0.21209411,59558.0,59557.0,0.083932]
[1724921145022,0.71581411,59558.0,59557.0,0.083932]
[1724921145322,0.72981411,59558.0,59557.0,0.084932]
[1724921146225,0.73081411,59558.0,59557.0,0.085932]
[1724921146429,0.73081411,59558.0,59557.0,0.002]
[1724921146822,0.71821145,59558.0,59557.0,0.002]
[1724921148129,0.80214245,59558.0,59557.0,0.002]
[1724921148330,0.083937,59553.0,59552.0,0.00025187]
[1724921148529,0.12,59551.0,59545.0,0.0039]
[1724921148824,0.083952,59543.0,59541.0,0.444754]
[1724921149026,0.12,59542.0,59541.0,0.444754]
[1724921150129,0.119,59542.0,59541.0,0.444754]
[1724921150534,0.03150195,59542.0,59541.0,0.564754]
[1724921150936,0.03450195,59542.0,59541.0,0.564754]
[1724921152629,0.00374813,59542.0,59541.0,0.564754]
[1724921157935,0.00374813,59542.0,59541.0,0.59514475]
[1724921160137,0.08135205,59542.0,59541.0,0.59514475]
[1724921161536,0.08135205,59542.0,59541.0,0.67909875]
[1724921161839,0.08135205,59542.0,59541.0,0.76305275]
[1724921163438,0.00025187,59547.0,59546.0,0.251841]
[1724921163738,0.00025187,59547.0,59546.0,0.732641]
[1724921164850,0.16972466,59564.0,59546.0,0.732641]
[1724921164851,0.01260266,59564.0,59553.0,0.083937]
[1724921165044,0.01260266,59564.0,59563.0,0.8416]
[1724921165230,0.09017485,59564.0,59563.0,1.009446]
[1724921165432,0.01260266,59564.0,59563.0,1.009446]
[1724921165732,0.01260266,59564.0,59563.0,0.805523]
[1724921166241,0.02560266,59564.0,59563.0,0.805523]
[1724921166544,0.02660266,59564.0,59563.0,0.805523]
[1724921167038,0.014,59564.0,59563.0,0.805523]
[1724921167932,0.014,59564.0,59563.0,0.7216]
[1724921168132,0.014,59564.0,59558.0,0.00025187]
[1724921168133,1.83928,59564.0,59558.0,0.00025187]
[1724921168339,0.3608,59559.0,59558.0,0.00025187]
[1724921168530,0.444729,59559.0,59558.0,0.00025187]
[1724921168731,0.082925,59562.0,59558.0,0.08418187]
[1724921169235,0.081925,59562.0,59559.0,0.083928]
[1724921169429,0.1558,59563.0,59560.0,0.083927]
[1724921170042,0.014,59562.0,59558.0,0.00225187]
[1724921170233,0.014,59562.0,59558.0,0.36305187]
[1724921170435,0.014,59562.0,59561.0,0.083926]
[1724921170633,0.013,59562.0,59561.0,0.083926]
[1724921170840,0.001,59563.0,59562.0,0.083925]
[1724921171040,0.014,59563.0,59562.0,0.083925]
[1724921171438,0.014,59563.0,59562.0,0.16785]
[1724921171641,0.01259906,59576.0,59575.0,0.083906]
[1724921173244,0.01559906,59576.0,59575.0,0.084906]
[1724921173739,0.02959906,59576.0,59575.0,0.085906]
[1724921175246,0.89395906,59576.0,59575.0,0.002]
[1724921175444,0.89395906,59576.0,59575.0,0.001]
[1724921175445,1.86486406,59576.0,59575.0,0.001]
[1724921175652,1.94876906,59576.0,59575.0,0.001]
[1724921175850,0.083914,59570.0,59557.0,0.3287]
[1724921176052,0.083914,59570.0,59552.0,0.075]
[1724921176053,0.3608,59559.0,59552.0,0.075]
[1724921176340,0.3608,59564.0,59560.0,0.083927]
[1724921176753,0.444722,59564.0,59560.0,0.083927]
[1724921176944,0.083923,59563.0,59560.0,0.083927]
[1724921177747,0.3608,59564.0,59562.0,0.083924]
[1724921178246,0.3608,59564.0,59563.0,0.083923]
[1724921179042,0.3608,59564.0,59560.0,0.002]
[1724921179043,0.3618,59564.0,59560.0,0.002]
[1724921179241,0.445722,59564.0,59560.0,0.085927]
[1724921179537,0.445722,59564.0,59563.0,0.001]
[1724921180144,0.083923,59563.0,59560.0,0.001]
[1724921180750,0.7226,59564.0,59560.0,0.001]
[1724921181049,0.806522,59564.0,59563.0,0.001]
[1724921181841,0.805522,59564.0,59563.0,0.001]
[1724921182048,0.806522,59564.0,59563.0,0.002]
[1724921182244,0.445722,59564.0,59563.0,0.002]
[1724921182555,0.3608,59564.0,59563.0,0.084923]
[1724921182757,0.3618,59564.0,59563.0,0.085923]
[1724921182959,0.001,59564.0,59563.0,0.518223]
[1724921183252,0.00144,59575.0,59564.0,0.083922]
[1724921183253,0.030805,59575.0,59564.0,0.083922]
[1724921183451,0.1559,59579.0,59575.0,0.083906]
[1724921183950,0.03062961,59578.0,59575.0,0.083906]
[1724921184540,0.08391,59573.0,59564.0,0.3287]
[1724921184747,0.08391,59573.0,59566.0,0.083919]
[1724921184748,0.3608,59567.0,59566.0,0.083919]
[1724921185057,0.072,59572.0,59568.0,0.083916]
[1724921185355,0.3608,59569.0,59568.0,0.083916]
[1724921185859,0.083913,59571.0,59568.0,0.083916]
[1724921186058,0.083913,59571.0,59569.0,0.083915]
[1724921187447,0.3608,59570.0,59569.0,0.083915]
[1724921187750,0.082915,59569.0,59568.0,0.001]
[1724921188556,0.081915,59569.0,59565.0,0.08392]
[1724921189244,0.081915,59569.0,59568.0,0.001]
[1724921189646,0.585555,59569.0,59568.0,0.001]
[1724921189854,0.08392,59566.0,59562.0,0.083924]
[1724921190058,0.08292,59566.0,59565.0,0.001]
[1724921190555,0.58656,59566.0,59565.0,0.001]
[1724921191050,0.58556,59566.0,59565.0,0.001]
[1724921191358,0.08192,59566.0,59565.0,0.08492]
[1724921191749,0.01159906,59567.0,59565.0,0.08392]
[1724921192249,0.66790128,59570.0,59565.0,0.08392]
[1724921192453,0.002,59566.0,59565.0,0.08492]
[1724921192849,0.003,59566.0,59565.0,0.08592]
[1724921193458,0.005,59566.0,59565.0,0.08592]
[1724921196457,0.003,59566.0,59565.0,0.08592]
[1724921199657,0.001,59566.0,59565.0,0.08592]
[1724921200056,0.083918,59567.0,59565.0,0.08592]
[1724921201864,0.083918,59567.0,59566.0,0.083919]
[1724921202359,0.001,59567.0,59566.0,0.083919]
[1724921202571,0.002,59567.0,59566.0,0.083919]
[1724921203064,0.085918,59567.0,59566.0,0.084919]
[1724921203368,0.085918,59567.0,59566.0,0.085919]
[1724921206266,0.084918,59567.0,59566.0,0.084919]
[1724921206466,0.084918,59567.0,59566.0,0.085919]
[1724921206467,0.085918,59567.0,59566.0,0.085919]
[1724921209565,0.084918,59567.0,59566.0,0.084919]
[1724921209770,0.085918,59567.0,59566.0,0.085919]
[1724921211561,0.1634944,59567.0,59566.0,0.085919]
[1724921212362,0.1624944,59567.0,59566.0,0.085919]
[1724921212568,0.1634944,59567.0,59566.0,0.085919]
[1724921213066,0.1624944,59567.0,59566.0,0.084919]
[1724921213272,0.1634944,59567.0,59566.0,0.085919]
[1724921217669,0.0795764,59567.0,59566.0,0.085919]
[1724921218471,0.0795764,59567.0,59566.0,0.084919]
[1724921218669,0.0795764,59567.0,59566.0,0.085919]
[1724921218973,0.00824826,59572.0,59571.0,0.083912]
[1724921219173,0.083902,59578.0,59574.0,0.083908]
[1724921219769,0.083902,59578.0,59575.0,0.083906]
[1724921220174,0.3608,59576.0,59575.0,0.083906]
[1724921220576,0.083911,59572.0,59571.0,0.001]
[1724921221374,0.082911,59572.0,59571.0,0.001]
[1724921221676,0.082912,59571.0,59570.0,0.00025187]
[1724921221871,0.443712,59571.0,59570.0,0.00025187]
[1724921222269,0.441712,59571.0,59570.0,0.00025187]
[1724921222775,0.441712,59571.0,59564.0,0.3326]
[1724921222776,0.08392,59565.0,59564.0,0.00367231]
[1724921222971,0.08392,59565.0,59548.0,0.223]
[1724921222972,0.08394,59551.0,59548.0,0.223]
[1724921223276,0.443742,59550.0,59548.0,0.0736]
[1724921223477,0.443742,59550.0,59541.0,0.083954]
[1724921223478,0.3588,59550.0,59541.0,0.1494]
[1724921224180,0.3588,59550.0,59541.0,0.233354]
[1724921224974,0.3578,59550.0,59541.0,0.233354]
[1724921225171,0.3578,59550.0,59541.0,0.1494]
[1724921225380,0.3608,59543.0,59540.0,0.00025187]
[1724921225772,0.444752,59543.0,59541.0,0.023]
[1724921225972,0.083953,59542.0,59541.0,0.023]
[1724921227181,0.16152364,59542.0,59541.0,0.023]
[1724921227981,0.16152364,59542.0,59541.0,0.012]
[1724921228588,0.083953,59542.0,59541.0,0.012]
[1724921228785,0.29,59542.0,59541.0,0.012]
[1724921228987,0.083971,59530.0,59523.0,0.3287]
[1724921229290,0.083971,59530.0,59519.0,0.1508]
[1724921229291,0.444771,59530.0,59519.0,0.1508]
[1724921229495,0.435771,59530.0,59523.0,0.083979]
[1724921230090,0.436771,59530.0,59523.0,0.097979]
[1724921231782,0.436771,59530.0,59524.0,0.083978]
[1724921232788,0.437771,59530.0,59524.0,0.083978]
[1724921233591,0.083974,59528.0,59521.0,0.44503387]
[1724921233788,0.36432,59530.0,59524.0,0.014]
[1724921234096,0.3628,59530.0,59528.0,0.083972]
[1724921235092,0.3618,59530.0,59528.0,0.083972]
[1724921235591,0.3608,59530.0,59528.0,0.083972]
[1724921235797,0.3618,59530.0,59528.0,0.083972]
[1724921236694,0.3618,59530.0,59529.0,0.083971]
[1724921236893,0.002,59530.0,59529.0,0.373971]
[1724921237189,0.002,59530.0,59529.0,0.083971]
[1724921237392,0.08597,59530.0,59529.0,0.083971]
[1724921238089,0.002,59530.0,59529.0,0.083971]
[1724921238490,0.002,59530.0,59529.0,0.093971]
[1724921241394,0.08597,59530.0,59529.0,0.01]
[1724921242092,0.44677,59530.0,59529.0,0.01]
[1724921242495,0.083981,59522.0,59521.0,0.00025187]
[1724921242699,0.436781,59522.0,59521.0,0.00025187]
[1724921244900,0.083982,59521.0,59510.0,0.0605]
[1724921245094,0.3608,59517.0,59510.0,0.0605]
[1724921245296,0.083994,59514.0,59510.0,0.0605]
[1724921245994,0.083994,59514.0,59510.0,0.144497]
[1724921247198,0.084994,59514.0,59510.0,0.144497]
[1724921248006,0.085994,59514.0,59510.0,0.144497]
[1724921248302,0.085994,59514.0,59512.0,0.3608]
[1724921248495,0.002,59514.0,59513.0,0.083994]
[1724921249296,0.002,59514.0,59513.0,0.588074]
[1724921249498,0.001,59514.0,59513.0,0.588074]
[1724921249800,0.002,59514.0,59513.0,0.588074]
[1724921250203,0.001,59514.0,59513.0,0.588074]
[1724921250401,0.002,59514.0,59513.0,0.588074]
[1724921250601,0.002,59514.0,59513.0,0.083994]
[1724921250801,0.002,59514.0,59513.0,0.588074]
[1724921251196,0.002,59514.0,59513.0,0.083994]
[1724921253799,0.002,59514.0,59513.0,0.444794]
[1724921256005,0.002,59514.0,59513.0,0.528788]
[1724921264213,0.002,59514.0,59513.0,0.444794]
[1724921264419,0.085992,59514.0,59513.0,0.444794]
[1724921265013,0.11637298,59514.0,59513.0,0.444794]
[1724921265408,0.002,59514.0,59513.0,0.444794]
[1724921272018,0.002,59514.0,59513.0,1.909674]
[1724921272214,0.002,59514.0,59513.0,0.805594]
[1724921272415,0.00025187,59518.0,59517.0,0.083988]
[1724921274416,0.06602043,59525.0,59517.0,0.083988]
[1724921274719,0.083983,59521.0,59518.0,0.083986]
[1724921274918,0.083984,59520.0,59518.0,0.083986]
[1724921275317,0.39198883,59526.0,59519.0,0.3608]
[1724921275518,0.47448583,59526.0,59524.0,0.083977]
[1724921275826,0.001,59525.0,59524.0,0.083977]
[1724921277631,0.11716583,59526.0,59524.0,0.083977]
[1724921277820,0.11568583,59526.0,59524.0,0.083977]
[1724921278220,0.03170883,59526.0,59525.0,0.083977]
[1724921278427,0.02970883,59526.0,59525.0,0.083977]
[1724921278626,0.00025187,59528.0,59525.0,0.083977]
[1724921278822,0.03062894,59528.0,59525.0,0.083977]
[1724921279030,0.00025187,59528.0,59525.0,0.083977]
[1724921279226,0.001,59526.0,59525.0,0.083977]
[1724921280031,0.083977,59525.0,59519.0,0.00025187]
[1724921280422,0.083979,59524.0,59523.0,0.08398]
[1724921281624,0.144979,59524.0,59523.0,0.08398]
[1724921282033,0.061,59524.0,59520.0,0.083983]
[1724921282235,0.082983,59521.0,59519.0,0.00025187]
[1724921282924,0.083984,59520.0,59519.0,0.00025187]
[1724921283117,0.444784,59520.0,59519.0,0.00025187]
[1724921283317,0.444784,59520.0,59519.0,0.00125187]
[1724921283527,0.948824,59520.0,59519.0,0.00125187]
[1724921283734,1.05523268,59520.0,59519.0,0.00125187]
[1724921284132,0.083992,59515.0,59508.0,0.0618]
[1724921284333,0.444792,59515.0,59508.0,0.0618]
[1724921285637,0.445792,59515.0,59508.0,0.0618]
[1724921285936,0.445792,59515.0,59511.0,0.083997]
[1724921286629,0.446792,59515.0,59511.0,0.083997]
[1724921286825,0.3628,59515.0,59508.0,0.0618]
[1724921287026,0.3628,59515.0,59507.0,0.084001]
[1724921287027,0.3608,59510.0,59507.0,0.084001]
[1724921287724,0.36900301,59510.0,59507.0,0.084001]
[1724921287931,0.36900301,59510.0,59506.0,0.00025187]
[1724921287932,0.084002,59507.0,59506.0,0.00025187]
[1724921291336,0.11490821,59507.0,59506.0,0.00025187]
[1724921298445,0.03090621,59507.0,59506.0,0.36105187]
[1724921298640,0.00025187,59514.0,59506.0,0.36105187]
[1724921298835,0.00025187,59514.0,59507.0,0.1279]
[1724921299141,0.00025187,59514.0,59513.0,0.083994]
[1724921300044,0.00025187,59514.0,59510.0,0.083997]
[1724921300045,0.00125187,59514.0,59510.0,0.083997]
[1724921301448,0.00825187,59514.0,59510.0,0.083997]
[1724921301850,0.01625187,59514.0,59511.0,0.083996]
[1724921302040,0.01225187,59514.0,59511.0,0.083996]
[1724921302444,0.00425187,59514.0,59511.0,0.083996]
[1724921302742,0.00925187,59514.0,59511.0,0.083996]
[1724921302937,0.00925187,59514.0,59507.0,0.4887]
[1724921303138,0.01025187,59514.0,59513.0,0.083994]
[1724921303346,0.00525187,59514.0,59513.0,0.083994]
[1724921303942,0.01125187,59514.0,59513.0,0.083994]
[1724921304543,0.00625187,59514.0,59513.0,0.083994]
[1724921304746,0.01425187,59514.0,59513.0,0.083994]
[1724921305149,0.01625187,59514.0,59513.0,0.083994]
[1724921306743,0.087884,59521.0,59520.0,0.083984]
[1724921306744,0.0039,59521.0,59520.0,0.083984]
[1724921307045,0.0039,59521.0,59513.0,0.50408]
[1724921307046,0.0039,59528.0,59519.0,0.29]
[1724921307248,0.083972,59529.0,59525.0,0.3608]
[1724921307453,0.11497793,59529.0,59526.0,0.0654]
[1724921308045,0.00025187,59533.0,59530.0,0.083969]
[1724921308655,0.00025187,59533.0,59531.0,0.083968]
[1724921309147,0.03050725,59533.0,59531.0,0.083968]
[1724921309350,0.04350725,59533.0,59531.0,0.083968]
[1724921311246,0.05750725,59533.0,59531.0,0.084968]
[1724921311441,0.05850725,59533.0,59531.0,0.147768]
[1724921313161,0.05850725,59533.0,59532.0,0.083967]
[1724921314357,0.05850725,59533.0,59532.0,0.084967]
[1724921315250,0.04450725,59533.0,59532.0,0.084967]
[1724921315446,0.05850725,59533.0,59532.0,0.085967]
[1724921316154,0.02825187,59533.0,59532.0,0.085967]
[1724921316360,0.02825187,59533.0,59532.0,0.446767]
[1724921317448,0.10586217,59533.0,59532.0,0.35230301]
[1724921318357,0.10586217,59533.0,59532.0,0.43627001]
[1724921321464,0.10586217,59533.0,59532.0,0.38646301]
[1724921324473,0.02825187,59533.0,59532.0,0.38646301]
[1724921326074,0.02825187,59533.0,59532.0,0.444767]
[1724921327975,0.02825187,59533.0,59532.0,0.564767]
[1724921328776,0.02825187,59533.0,59532.0,0.203967]
[1724921328966,0.02825187,59533.0,59532.0,0.564767]
[1724921329766,0.02825187,59533.0,59532.0,0.21638862]
[1724921329978,0.02825187,59533.0,59493.0,0.12]
[1724921329979,0.1682,59528.0,59493.0,0.12]
[1724921330168,0.12,59506.0,59501.0,0.12]
[1724921330374,0.3608,59514.0,59502.0,0.4872]
[1724921330575,0.3608,59514.0,59510.0,0.12]
[1724921331779,0.12,59511.0,59506.0,0.00025209]
[1724921331974,0.3608,59509.0,59506.0,0.00025209]
[1724921335676,0.084001,59508.0,59506.0,0.00025209]
[1724921337378,0.084002,59507.0,59506.0,0.00025209]
[1724921337776,0.444802,59507.0,59506.0,0.00025209]
[1724921343688,0.47469403,59507.0,59506.0,0.00025209]
[1724921354196,0.59469403,59507.0,59506.0,0.00025209]
[1724921356191,0.23389403,59507.0,59506.0,0.00025209]
[1724921356396,0.59469403,59507.0,59506.0,0.00025209]
[1724921357994,0.39069203,59507.0,59506.0,0.00025209]
[1724921358191,0.39069203,59507.0,59506.0,0.12025209]
[1724921358389,0.51069203,59507.0,59506.0,0.08425609]
[1724921360784,0.14989203,59507.0,59506.0,0.08425609]
[1724921361283,0.51069203,59507.0,59506.0,0.08425609]
[1724921361889,0.14989203,59507.0,59506.0,0.08425609]
[1724921362786,0.59469403,59507.0,59506.0,0.08425609]
[1724921363195,0.59469403,59507.0,59506.0,0.00025209]
[1724921363697,0.02989203,59507.0,59506.0,0.20425609]
[1724921363892,0.564796,59512.0,59509.0,0.083999]
[1724921364100,0.564796,59512.0,59510.0,0.083997]
[1724921365197,0.567796,59512.0,59510.0,0.083997]
[1724921365397,0.570796,59512.0,59510.0,0.083997]
[1724921365897,0.083997,59511.0,59510.0,0.083997]
[1724921367800,0.090997,59511.0,59510.0,0.083997]
[1724921367997,0.007,59511.0,59510.0,0.083997]
[1724921368200,0.00415209,59518.0,59517.0,0.083988]
[1724921368506,1e-08,59518.0,59517.0,0.564788]
[1724921369902,1e-08,59518.0,59517.0,1.668828]
[1724921370101,1e-08,59518.0,59517.0,1.548828]
[1724921370303,1e-08,59518.0,59517.0,1.549828]
[1724921370706,1e-08,59518.0,59517.0,1.6636577]
[1724921371604,1e-08,59518.0,59517.0,1.6656577]
[1724921372895,1e-08,59518.0,59517.0,1.6676577]
[1724921373298,1e-08,59518.0,59517.0,1.6656577]
[1724921373610,1e-08,59518.0,59517.0,1.6686577]
[1724921373909,1e-08,59518.0,59517.0,1.6666577]
[1724921374715,1e-08,59518.0,59517.0,1.6656577]
[1724921374902,1e-08,59518.0,59517.0,1.6676577]
[1724921377604,1e-08,59518.0,59517.0,1.9576577]
[1724921377798,0.14661203,59518.0,59517.0,1.83748094]
[1724921378713,0.07765306,59518.0,59517.0,1.83748094]
[1724921379210,0.07765306,59518.0,59517.0,1.83648094]
[1724921380517,0.00025209,59523.0,59522.0,0.167962]
[1724921380819,0.07787054,59523.0,59522.0,0.167962]
[1724921381818,0.08087054,59523.0,59522.0,0.167962]
[1724921382318,0.08387054,59523.0,59522.0,0.167962]
[1724921384920,0.00625209,59523.0,59522.0,0.167962]
[1724921387424,0.00625209,59523.0,59522.0,0.251943]
[1724921387619,0.34329655,59536.0,59525.0,0.083975]
[1724921387814,0.083964,59534.0,59533.0,0.083963]
[1724921390122,0.097964,59534.0,59533.0,0.083963]
[1724921391229,0.111964,59534.0,59533.0,0.084963]
[1724921397636,0.097964,59534.0,59533.0,0.083963]
[1724921397933,0.105964,59534.0,59533.0,0.084963]
[1724921398136,0.091964,59534.0,59533.0,0.084963]
[1724921398325,0.102964,59534.0,59533.0,0.085963]
[1724921398527,0.105964,59534.0,59533.0,0.085963]
[1724921401334,0.023,59534.0,59533.0,0.205963]
[1724921401536,0.024,59534.0,59533.0,0.205963]